Cogmind - Beta 13 @@@ ROGUE MODE // 2024.05.03 @ 18:24:36 Player: Bace Troncons Result: Destroyed by G-47 Trooper with Particle Gun Performance ------------- Evolutions (2) 1000 Regions Visited (6) 1200 Robots Destroyed (42) 210 Value Destroyed (867) 867 Prototype IDs (26) 520 Alien Tech Used (0) 0 Bonus (300) 300 TOTAL SCORE: 4097 Bonus ------- Aligned with FarCom 300 Cogmind --------- Core Integrity 0/550 Matter 79/300 Energy 100/100 System Corruption 0% Temperature Cool (18) Movement Core (500) Ox9 Location -8/Materials Parts ------- > --- POWER (1) -------- (None) > --- PROPULSION (3) --- (None) > --- UTILITY (5) ------ Large Storage Unit Signal Interpreter Medium Armor Plating Hacking Suite Hacking Suite > --- WEAPON (2) ------- Light Assault Rifle > --- INVENTORY (15) --- Light Ion Engine Small Storage Unit Weight Redist. System Weight Redist. System Transport Network Coupler ECM Suite Light Armor Plating Medium Armor Plating System Shield Chronowheel Peak State ------------ > --- POWER ------------ Ion Engine > --- PROPULSION ------- Light Treads Light Treads > --- UTILITY ---------- Large Storage Unit Visual Processing Unit Sensor Array Signal Interpreter Hacking Suite > --- WEAPON ----------- Assault Rifle Mini Grenade Launcher > --- INVENTORY -------- Light Ion Engine Small Storage Unit Weight Redist. System Weight Redist. System Transport Network Coupler ECM Suite Light Armor Plating Medium Armor Plating Medium Armor Plating Medium Armor Plating Chronowheel Assault Rifle Light Assault Rifle Mini Grenade Launcher Heavy Hammer [Rating: 17] Favorites ----------- Power Ion Engine Engine Ion Engine Propulsion Light Treads Treads Light Treads Utility Large Storage Unit Device Sensor Array Storage Large Storage Unit Processor Visual Processing Unit Hackware Hacking Suite Protection Medium Armor Plating Weapon Assault Rifle Energy Gun Medium Laser Ballistic Gun Assault Rifle Launcher Mini Grenade Launcher Impact Weapon Heavy Hammer Build | -11 -10 -9 -9 -9 -8 -8 ------- Run | Yrd Mat Mat Min Exi Min Mat Slots Evolved 4 | . . 2 . . . 2 Power . | . . . . . . . Propulsion 1 | . . . . . . 1 Utility 3 | . . 2 . . . 1 Weapon . | . . . . . . . Parts Attached 38 | 6 11 3 8 . . 10 Power 4 | 1 1 . 1 . . 1 Engine 4 | 1 1 . 1 . . 1 Core . | . . . . . . . Reactor . | . . . . . . . Propulsion 4 | 2 . . 2 . . . Treads 4 | 2 . . 2 . . . Leg . | . . . . . . . Wheel . | . . . . . . . Hover . | . . . . . . . Flight . | . . . . . . . Utility 12 | 1 4 2 1 . . 4 Device 2 | . 1 1 . . . . Storage 3 | 1 2 . . . . . Processor 2 | . . 1 1 . . . Hackware 2 | . . . . . . 2 Protection 3 | . 1 . . . . 2 Artifact . | . . . . . . . Weapon 18 | 2 6 1 4 . . 5 Energy Gun 1 | . 1 . . . . . Energy Cannon . | . . . . . . . Ballistic Gun 10 | 2 3 1 2 . . 2 Ballistic Cannon . | . . . . . . . Launcher 6 | . 2 . 2 . . 2 Special Weapon . | . . . . . . . Impact Weapon 1 | . . . . . . 1 Slashing Weapon . | . . . . . . . Piercing Weapon . | . . . . . . . Special Melee Weapon . | . . . . . . . Unidentified Prototypes . | . . . . . . . Parts Lost 15 | . 1 1 3 . . 10 Power 3 | . . . 1 . . 2 Propulsion 4 | . . . 2 . . 2 Utility 3 | . 1 . . . . 2 Weapon 5 | . . 1 . . . 4 Highest Loss Streak 9 | . 1 1 2 . . 9 To Critical Strikes . | . . . . . . . Average Slot Usage (%) 96 | . 98 99 98 100 100 79 Engine 11 | . 14 11 10 11 11 7 Treads 22 | . 28 22 21 22 22 15 Device 9 | . . 22 17 11 11 5 Storage 11 | . 14 11 11 11 11 9 Processor 10 | . . 11 15 22 22 12 Hackware 1 | . . . . . . 9 Protection 4 | . 11 . . . . 4 Energy Gun 4 | . 11 4 . . . . Ballistic Gun 14 | . 16 17 16 11 11 7 Launcher 4 | . . . 5 11 11 6 Naked Turns . | . . . . . . . Heaviest Build 96 | 13 96 32 32 29 29 37 Greatest Support 40 | 40 40 40 40 40 40 40 Greatest Overweight (x) 10 | . 2 . 1 . . 10 Average Overweight (x) . | . 1 . . . . . Largest Inventory Capacity 25 | 8 25 15 15 15 15 15 Average Capacity 16 | 6 20 15 15 15 15 15 Most Carried 17 | 3 17 15 14 15 15 15 Average Carried 13 | 2 12 14 13 14 15 14 Final Capacity 15 | 8 15 15 15 15 15 15 Final Carried 15 | 3 14 15 14 15 15 10 Class Distribution -------------------- 65% | Mutant 23% | Scavenger-Skirmisher 10% | Skirmisher Dominant Class ---------------- Mutant | -10/Materials Mutant | -9/Materials Mutant | -9/Mines Scavenger-Skirmisher | -9/Exiles Scavenger-Skirmisher | -8/Mines Scavenger-Skirmisher | -8/Materials Resources | -11 -10 -9 -9 -9 -8 -8 ----------- Run | Yrd Mat Mat Min Exi Min Mat Matter Collected 882 | 202 163 151 165 . 75 126 Remotely . | . . . . . . . Salvage Created 878 | . 251 236 225 . 16 150 Parts 65 | . 24 10 15 . 4 12 Haulers Intercepted 2 | . 1 1 . . . . Recyclers Shooed 2 | . . . 2 . . . Parts Field Recycled . | . . . . . . . Retrieved Matter . | . . . . . . . Parts Self-Destructed . | . . . . . . . Prevented . | . . . . . . . Kills | -11 -10 -9 -9 -9 -8 -8 ------- Run | Yrd Mat Mat Min Exi Min Mat Combat Hostiles Destroyed 28 | . 7 3 8 . 3 7 Melee 2 | . . . . . . 2 Guns 11 | . 3 3 3 . 1 1 AOE 14 | . 4 . 5 . 2 3 Classes Destroyed 10 | . 6 2 1 . . 1 Worker 4 | . 4 . . . . . Builder 2 | . 2 . . . . . Hauler 2 | . 1 1 . . . . Recycler 2 | . . 1 1 . . . Operator 1 | . . . . . . 1 Watcher 3 | . 3 . . . . . Swarmer 14 | . 5 . 3 . 3 3 Grunt 10 | . 2 2 4 . . 2 Brawler 1 | . . . 1 . . . Sentry 3 | . . 1 . . . 2 Best Kill Streak 7 | . 7 2 3 . 3 5 Combat Bots Only 4 | . 2 2 3 . 3 4 Max Kills in Single Turn 4 | . 4 1 2 . 2 2 Gunslinging . | . . . . . . . Exploded 2 | . 2 . 2 . 2 2 Melee 1 | . . . . . . 1 Uniques/NPCs Destroyed . | . . . . . . . Combat | -11 -10 -9 -9 -9 -8 -8 -------- Run | Yrd Mat Mat Min Exi Min Mat Hostile Shots Fired 271 | . 45 36 35 . 11 144 Missed 72 | . 9 8 10 . . 45 Damage Taken 2668 | . 391 337 350 . 124 1466 Core 808 | . 72 59 106 . 10 561 Absorbed by Shields . | . . . . . . . Core Remaining (%) 75 | 100 71 . . . 56 . Volleys Fired 92 | . 25 18 28 . 3 18 Largest 2 | . 2 2 2 . 2 1 Hottest 70 | . 70 40 50 . 50 30 Shots Fired 148 | . 50 36 38 . 6 18 Gun 117 | . 44 36 31 . 3 3 Cannon . | . . . . . . . Launcher 31 | . 6 . 7 . 3 15 Special . | . . . . . . . Kinetic 105 | . 32 36 31 . 3 3 Thermal 12 | . 12 . . . . . Explosive 31 | . 6 . 7 . 3 15 Electromagnetic . | . . . . . . . Robot Hit Streak 13 | . 8 13 6 . 1 7 Robot Miss Streak 4 | . 2 3 4 . 2 1 Penetration Max . | . . . . . . . Secondary Targets 1 | . . 1 . . . . Max Gunslinging Chain 1 | . . 1 . . . . Shots Hit Robots 95 | . 29 26 21 . 1 18 Core Hits 72 | . 22 14 15 . 3 18 Critical Kills 1 | . . . . . . 1 Critical Parts Destroyed 2 | . . . . . . 2 Critical Strikes 6 | . 3 . . . . 3 Burn 3 | . 3 . . . . . Destroy 1 | . . . . . . 1 Smash 2 | . . . . . . 2 Melee Attacks 8 | . . . . . . 8 Impact 8 | . . . . . . 8 Slashing . | . . . . . . . Piercing . | . . . . . . . Sneak Attacks 1 | . . . . . . 1 Combat Hostiles . | . . . . . . . Follow-up Attacks . | . . . . . . . Damage Inflicted 2938 | . 1065 331 660 . 142 740 Guns 951 | . 338 330 243 . 13 27 Cannons . | . . . . . . . Explosions 1637 | . 727 . 417 . 129 364 Melee 346 | . . . . . . 346 Ramming 4 | . . 1 . . . 3 Kinetic 850 | . 237 330 243 . 13 27 Thermal 232 | . 232 . . . . . Explosive 1506 | . 596 . 417 . 129 364 Electromagnetic . | . . . . . . . Impact 346 | . . . . . . 346 Slashing . | . . . . . . . Piercing . | . . . . . . . Highest Corruption 1 | . 1 . . . . . Average Corruption 1 | . 1 . . . . . Corruption Purged . | . . . . . . . Corruption Blocked . | . . . . . . . Effects 4 | . 4 . . . . . Message Errors 1 | . 1 . . . . . Heat Flow Errors 1 | . 1 . . . . . Data Loss (major) 2 | . 2 . . . . . Overload Shots . | . . . . . . . Overflow Damage 216 | . 69 . 19 . 38 90 Projectiles . | . . . . . . . Explosions 149 | . 69 . 19 . 38 23 Melee 67 | . . . . . . 67 Knockbacks 1 | . . . . . . 1 Impact 1 | . . . . . . 1 Kinetic . | . . . . . . . Secondary . | . . . . . . . Self-Inflicted Damage 290 | . 46 . 66 . 39 139 Shots 9 | . 1 . 3 . 1 4 Rammed 2 | . . 1 . . . 1 Targets Rammed 2 | . . 1 . . . 1 Kicked . | . . . . . . . Crushed . | . . . . . . . Highest Temperature 205 | . 205 7 17 . . 6 Average Temperature 47 | . 56 3 4 . . 3 Received Heat Transfer 1017 | . 69 189 156 . . 603 Siege Activations . | . . . . . . . Robots Corrupted . | . . . . . . . Combat Hostiles . | . . . . . . . Parts Fried 1 | . . . . . . 1 Impact Corruptions 4 | . . . . . . 4 Robots Melted . | . . . . . . . Combat Hostiles . | . . . . . . . Parts Melted . | . . . . . . . Heat Transferred 618 | . 618 . . . . . Parts Sabotaged . | . . . . . . . Parts Stolen . | . . . . . . . Parts Stripped . | . . . . . . . Power Chain Reactions . | . . . . . . . Alert | -11 -10 -9 -9 -9 -8 -8 ------- Run | Yrd Mat Mat Min Exi Min Mat Peak Influence 298 | . 189 208 145 . 91 298 Initial 51 | . . 51 . . . 35 Average 73 | . 59 90 52 . 23 165 Maximum Alert Level 1 | . . 1 . . . 1 Low Security (%) 92 | 100 100 98 100 . 100 49 Level 1 7 | . . 1 . . . 50 Level 2 . | . . . . . . . Level 3 . | . . . . . . . Level 4 . | . . . . . . . Level 5 . | . . . . . . . High Security . | . . . . . . . Max Security . | . . . . . . . Squads Dispatched 4 | . 1 1 . . . 2 Investigation 2 | . 1 . . . . 1 Extermination . | . . . . . . . Reinforcement 2 | . . 1 . . . 1 Assault . | . . . . . . . Garrison . | . . . . . . . Intercept . | . . . . . . . Searches Triggered . | . . . . . . . Construction Impeded . | . . . . . . . Haulers Reinforced . | . . . . . . . Active Scanning Responses . | . . . . . . . Cargo Convoy Interrupts . | . . . . . . . Stealth | -11 -10 -9 -9 -9 -8 -8 --------- Run | Yrd Mat Mat Min Exi Min Mat Distress Signals 2 | . 1 1 . . . . Communications Jammed . | . . . . . . . Distress Signals . | . . . . . . . Times Spotted 45 | . 11 12 8 . 3 11 Peak Tracking Total 7 | . 3 7 3 . 3 6 Tactical Retreats 2 | . . 1 . . . 1 Traps | -11 -10 -9 -9 -9 -8 -8 ------- Run | Yrd Mat Mat Min Exi Min Mat Traps Triggered . | . . . . . . . Indirectly . | . . . . . . . Trap Hack Attempts . | . . . . . . . Triggered . | . . . . . . . Disarmed . | . . . . . . . Reprogrammed . | . . . . . . . Reused . | . . . . . . . Traps Extracted . | . . . . . . . Installed . | . . . . . . . Triggered . | . . . . . . . Machines | -11 -10 -9 -9 -9 -8 -8 ---------- Run | Yrd Mat Mat Min Exi Min Mat Machines Disabled 9 | . 5 . . . . 4 Max in Single Turn 3 | . 3 . . . . 1 Machines Repaired . | . . . . . . . Machines Dismantled . | . . . . . . . Machines Sabotaged . | . . . . . . . Overloaded Fab Kills . | . . . . . . . Hacking | -11 -10 -9 -9 -9 -8 -8 --------- Run | Yrd Mat Mat Min Exi Min Mat Machines Accessed 8 | . 3 1 . 1 . 3 Terminals 7 | . 3 1 . . . 3 Fabricators . | . . . . . . . Repair Stations . | . . . . . . . Recycling Units . | . . . . . . . Scanalyzers . | . . . . . . . Garrison Access . | . . . . . . . Total Hacks 20 | . 7 3 . 1 . 9 Successful 7 | . 1 1 . 1 . 4 Failed 13 | . 6 2 . . . 5 Catastrophic 1 | . . . . . . 1 Database Lockouts . | . . . . . . . Manual 1 | . . . . 1 . . Terminals 19 | . 7 3 . . . 9 Fabricators . | . . . . . . . Repair Stations . | . . . . . . . Recycling Units . | . . . . . . . Scanalyzers . | . . . . . . . Garrison Access . | . . . . . . . Terminal Hacks 7 | . 1 1 . 1 . 4 Robot Analysis 1 | . . . . . . 1 Prototype ID Bank 2 | . 1 1 . . . . Level Access Points 1 | . . . . . . 1 Terminal Index 1 | . . . . . . 1 Registered Components 1 | . . . . . . 1 Derelict Proto ID Bank 1 | . . . . 1 . . Fabricator Hacks . | . . . . . . . Repair Station Hacks . | . . . . . . . Recycling Unit Hacks . | . . . . . . . Scanalyzer . | . . . . . . . Garrison Access Hacks . | . . . . . . . Unauthorized Hacks . | . . . . . . . Terminals . | . . . . . . . Fabricators . | . . . . . . . Repair Stations . | . . . . . . . Recycling Units . | . . . . . . . Scanalyzers . | . . . . . . . Garrison Access . | . . . . . . . Data Cores Recovered . | . . . . . . . Used . | . . . . . . . Hacking Detections 7 | . 3 1 . . . 3 Full Trace Events 2 | . 1 . . . . 1 Feedback Events 1 | . 1 . . . . . Corruption 1 | . 1 . . . . . Feedback Blocked . | . . . . . . . Robot Schematics Acquired . | . . . . . . . Robots Built . | . . . . . . . Authchips . | . . . . . . . Time . | . . . . . . . Total Robot Build Rating . | . . . . . . . Part Schematics Acquired . | . . . . . . . Parts Built . | . . . . . . . Authchips . | . . . . . . . Time . | . . . . . . . Total Part Build Rating . | . . . . . . . Parts Repaired . | . . . . . . . Time . | . . . . . . . Parts Recycled . | . . . . . . . Recycled Matter . | . . . . . . . Retrieved Matter . | . . . . . . . Retrieved Components . | . . . . . . . Parts Scanalyzed . | . . . . . . . Part Schematics Acquired . | . . . . . . . Parts Damaged . | . . . . . . . Bothacking | -11 -10 -9 -9 -9 -8 -8 ------------ Run | Yrd Mat Mat Min Exi Min Mat Used RIF Installer . | . . . . . . . Robots Hacked . | . . . . . . . Non-combat . | . . . . . . . Combat . | . . . . . . . Robot Hacks Applied . | . . . . . . . Relay Couplers Released . | . . . . . . . Fabnet Peak Effective % . | . . . . . . . Robots Rewired . | . . . . . . . Allies Hacked . | . . . . . . . Hacks Repelled . | . . . . . . . Allies | -11 -10 -9 -9 -9 -8 -8 -------- Run | Yrd Mat Mat Min Exi Min Mat Total Allies . | . . . . . . . Largest Group . | . . . . . . . Highest-Rated Group . | . . . . . . . Highest-Rated Ally . | . . . . . . . Total Orders . | . . . . . . . Ally Attacks . | . . . . . . . Total Damage . | . . . . . . . Kills . | . . . . . . . Allies Corrupted . | . . . . . . . Allies Melted . | . . . . . . . Intel | -11 -10 -9 -9 -9 -8 -8 ------- Run | Yrd Mat Mat Min Exi Min Mat Robot Analysis Total 1 | . . . . . . 1 Derelict Logs Recovered 2 | . . . 2 . . . Drone Launches . | . . . . . . . Drone Recoveries . | . . . . . . . Exploration | -11 -10 -9 -9 -9 -8 -8 ------------- Run | Yrd Mat Mat Min Exi Min Mat Turns Passed 3339 | 76 1073 423 833 398 119 417 Spaces Moved 1571 | 42 386 180 450 249 69 195 Core 10 | 2 . . . . . 8 Treads 1561 | 40 386 180 450 249 69 187 Legs . | . . . . . . . Wheels . | . . . . . . . Hover . | . . . . . . . Flight . | . . . . . . . Fastest Speed 50 | 50 160 160 160 160 160 160 Average Speed 183 | 154 249 160 161 160 160 172 Slowest Speed 550 | 160 320 160 240 160 160 550 Overloaded Moves . | . . . . . . . Propulsion Burnouts . | . . . . . . . Robots Hopped . | . . . . . . . Cave-ins Triggered . | . . . . . . . Exploration Rate (%) 34 | 4 68 23 63 47 18 20 Regions Visited 6 Branch Regions 3 Pre-discovered Areas . | . . . . . . . Known Exits Taken 3 | . . . 1 1 1 . Unknown Exits Taken 3 | 1 1 1 . . . . Scrap Searched . | . . . . . . . Spaces Dug 38 | . . . . . . 38 Terrain Destroyed 210 | . 29 . 61 . 21 99 Melee . | . . . . . . . Projectile . | . . . . . . . AOE 210 | . 29 . 61 . 21 99 Terrain Rammed . | . . . . . . . Walls Destroyed . | . . . . . . . Machines Disabled . | . . . . . . . Actions | -11 -10 -9 -9 -9 -8 -8 --------- Run | Yrd Mat Mat Min Exi Min Mat Total 1856 | 50 443 280 517 249 72 245 Wait 116 | . 3 73 30 . 1 9 Move 1565 | 41 385 179 449 248 68 195 Hop . | . . . . . . . Pick Up 26 | 3 15 4 1 1 . 2 Fast Attach 13 | 6 3 . 2 . . 2 Attach 13 | . 1 3 3 . . 6 Detach 3 | . . 1 1 . . 1 Swap 12 | . 7 . 3 . . 2 Drop 6 | . 4 1 . . . 1 Fire 92 | . 25 18 28 . 3 18 Melee 8 | . . . . . . 8 Ram . | . . . . . . . Kick . | . . . . . . . Crush 2 | . . 1 . . . 1 Escape Stasis . | . . . . . . . Rewire . | . . . . . . . Trap . | . . . . . . . Miscellaneous . | . . . . . . . Route ------- -11/Scrapyard -10/Materials (discovered 2 exits: *Mat / [*Min]) -9/Materials -9/Mines -9/Exiles -8/Mines -8/Materials (discovered 4 exits: Fac x3 / *Sto) History --------- Turn | Location | Event 17 | -11/Scrapyard | Discovered new exit (range 15) 77 | -11/Scrapyard | Entered Materials 192 | -10/Materials | Discovered new exit (range 12) 322 | -10/Materials | Build established: Mutant 1072 | -10/Materials | Discovered new exit (range 11) 1150 | -10/Materials | Entered another Materials area 1150 | -9/Materials | Evolved 2 slots: Utility x2 1307 | -9/Materials | Discovered new exit (range 13) 1573 | -9/Materials | Entered Mines 1826 | -9/Mines | Learned Materials non-interactive machine intel 2159 | -9/Mines | Learned Materials garrison access intel 2398 | -9/Mines | Deemed a non-threat by the Exiles lab entrance 2400 | -9/Mines | Discovered new exit (range 5) 2405 | -9/Mines | Identified exit to Exiles 2406 | -9/Mines | Entered Exiles 2427 | -9/Exiles | Discovered new exit (range 17) 2443 | -9/Exiles | Met 8R-AWN 2472 | -9/Exiles | Met EX-HEX 2517 | -9/Exiles | Met EX-BIN 2539 | -9/Exiles | Aligned with FarCom system 2541 | -9/Exiles | Given EX-Vault access code 2581 | -9/Exiles | Build established: Scavenger-Skirmisher 2587 | -9/Exiles | Opened EX-Vault 2621 | -9/Exiles | Found Chronowheel 2657 | -9/Exiles | Warned to stay clear of 0b10 Research branches 2799 | -9/Exiles | Identified exit to Mines 2804 | -9/Exiles | Left Exiles lab with Chronowheel 2804 | -9/Exiles | Entered Mines 2883 | -8/Mines | Discovered new exit (range 11) 2922 | -8/Mines | Identified exit to Materials 2923 | -8/Mines | Entered Materials 2923 | -8/Materials | Evolved 2 slots: Propulsion x1, Utility x1 2924 | -8/Materials | Loaded intel: 22 non-interactive machine locations 2925 | -8/Materials | Loaded intel: 1 garrison access location 2930 | -8/Materials | Discovered new exit (range 17) 3036 | -8/Materials | Identified exit to Storage 3182 | -8/Materials | Identified exit to Factory 3320 | -8/Materials | Core integrity fell below 50% 3329 | -8/Materials | Core integrity fell below 20% 3340 | -8/Materials | Destroyed by G-47 Trooper with Particle Gun Last Messages --------------- 03313_ S-10 Pest misfires. 03314_ S-10 Pest system terminally corrupted. 03314_ Flight Unit fried. 03319_ Acquired 28 matter. 03319_ Critical hit (Burn: +37). 03320_ K-01 Serf collects debris. 03320_ Hvy. Hammer destroyed. 03320_ Critical hit (Burn: +37). 03324_ K-01 Serf collects debris. 03326_ Terminal disabled. 03326_ Mni. Grenade Launcher destroyed. 03326_ Destroyed Mni. Grenade Launcher. 03329_ K-01 Serf collects debris. 03330_ The unstable cave ceiling collapses. 03332_ K-01 Serf collects debris. 03335_ G-47 Trooper suffers critical hit (Destroy). 03335_ G-47 Trooper destroyed. 03335_ K-01 Serf collects debris. 03340_ Lgt. Ion Engine destroyed. Map ----- +----------------------------------------------------+ | ??????????????????# """ # "" # | | ?????????????###### # | | ?????????????# #######+##### | | ?????????????## | | ?????????????# | | ?????????????## | | ??????????????### ############### | | ????????????????#####?????????????# | | ??????????????????????????????????## | | ???????????????????????????????????## | | ???????????????????????????????????## | | ????????????????????????????????????? | | ???????????????????????????########## | | ???????????????????????????# | | ???????????????????????????# """ | | ???????????????????????????# """"" | | ???????????????????????????# """"" | | ????????????????????????#### " "" | | ????????????????????????# # "" | | ?????????########???????# [ | | ?######### # # ?######### | | ?# ] ! ### ## ###### | | ?# = *# "" # ] | | ?# [ %g *%[" # "T ] ## T | | ?# [ ! " + "" #### | | ?# "" """ @ g # #??# | | ?# "T """ g !# """ #??# | | ?# "" """ # # """ #??######## | | ?# # """ #?????????? | | ?#####+###### ## ! #?????????? | | ?????# #????# ###########?????????? | | ?????# #????# #??"""""????????????? | | ??#### #????# #??"""""????????????? | | ?#== #????# #??"""""????????????? | | ?#== #???????????????????? | | ?#[[ +???????????????????? | | ?#[[ a#???????????????????? | | ?#!! ##### ##???????????????????? | | ?#!! #???? #????????????????????? | | ?##### #???? #????????????????????? | | ?????# #?????#????????????????????? | | ?????? #??????????????????????????? | | ?????? #??????????????????????????? | | ?????? #??????????????????????????? | | ?????? +??????????????????????????? | | ?????? #??????????????????????????? | | ?????? #??????????????????????????? | | ?????? #??????????????????????????? | | ??????? ????????????????????????????? | | ????????????????????????????????????? | +----------------------------------------------------+ Best States ------------- Heat Dissipation 31 Energy Generation 10 Energy Capacity 250 Matter Stores 260 Matter Capacity 300 Sight Range 18 Robot Scan Range 14 Terrain Scan Density 10 ECM Strength 1 Armor Coverage 225 Evasion (%) 40 Recoil Reduction 2 Offensive Hacking 20 Item Schematics ----------------- None Robot Schematics ------------------ None Fabricated ------------ Nothing Alien Tech Used ----------------- None Achievements -------------- None Challenges ------------ None Game ------ Seed FrostRefineryExoskeleton Manual? 0 Play Time 00:24:22 Cumulative 53.2 hours Start 2024.05.03 @ 17:59:53 End 2024.05.03 @ 18:24:36 Sessions 1 Manual Loads 0 Difficulty Rogue Special Mode None Game No. 81 Rogue 81 Adventurer 0 Explorer 0 Win Type - Total 0 Types 0/0/0/0/0/0/0/0/0 Lore% 27 Gallery% 35 Achievement% 27 Wizard Run 0 Options --------- Layout 1 ASCII 0 Keyboard 1 Movement Numpad Keybinds 0 Fullscreen 1 Font 24/Smallcaps Map View 50x35 Zoom Use 0% Tactical HUD 1 Map Filters NONE Filters NONE Steam 1 RUN: 88d0c618-f78b-49fe-9867-0ccae66cd9c5